Workbook

Sheet Таблиця для звіту
A1: Перелік цільових програм, які виконуються за 2018 рік з використанням усіх джерел фінансування
A3: № п.п. | B3: Назва програми дата і номер рішення про її затвердження | C3: Основні заходи | D3: Головний розпорядник коштів та виконавці | E3: Планові обсяги фінансування на 2018 рік відповідно до Програми (потреба) з бюджету міста | F3: Передба-чено бюджетом міста на 2018 рік | G3: Фактичні обсяги фінансування за 9 місяців 2018 року з бюджету міста
A5: 1 | B5: 2 | C5: 3 | D5: 4 | E5: 5 | F5: 6 | G5: 7
B6: Програма соціально-правового захисту дітей на 2017-2021 роки | C6: всього по програмі | D6: Управління соціальних служб для сім"ї, дітей та молоді Луцької міської ради | E6: =121100+51900 -> 173000 | F6: =E6 -> 173000 | G6: =SUM(G7:G21) -> 173000
C7: Про проведення заходів | E7: =3800+394.92+2972 -> 7166.92 | F7: 7166.92 | G7: =E7 -> 7166.92
C8: Про проведення екскурсії зоопарком | E8: =1200+96+100 -> 1396 | F8: 1396 | G8: 1396
C9: Про проведення заходів | E9: =1493+3411.69 -> 4904.69 | F9: 4904.69 | G9: 4904.69
C10: Про здійснення соціальної роботи з сім’ями які опинились в складних життєвих обставинах | E10: 5146.87 | F10: 5146.87 | G10: 5146.87
C11: Про участь дітей у Міжнародному фестивалі аутизму Anca | E11: =102269.92+15200 -> 117469.92 | F11: 117469.92 | G11: 117469.92
C12: Про проведення заходів до Дня матері | E12: 2159 | F12: 2159 | G12: 2159
C13: Про проведення екскурсії у кінний-спортивний клуб Cloverland Horse Club | E13: 1088.04 | F13: =E13 -> 1088.04 | G13: 1088.04
C14: Про здійснення соціальної роботи з сім’ями які опинились в складних життєвих обставинах | E14: =2997.01+670.14+55.85+819.06 -> 4542.06 | F14: 4542.06 | G14: 4542.06
C15: Про проведення екскурсії у кінний-спортивний клуб Cloverland Horse Club | E15: 1201.6 | F15: 1201.6 | G15: 1201.6
C16: Про проведення конкурсів малюнку на асфальті | E16: =1488+460.8+1040+63+214.89 -> 3266.69 | F16: 3266.69 | G16: 3266.69
C17: Про проведення заходу “Я-лучанин, я-лучанка” | E17: =3276+71.82+700 -> 4047.82 | F17: 4047.82 | G17: 4047.82
C18: Про проведення заходів | E18: =1447.2 -> 1447.2 | F18: 1447.2 | G18: 1447.2
C19: Про реалізацію соціального проекту “Соціальні послуги в громаді” | E19: =1310.34+800+3547+779.24+260+2076+1763.5+625+2675+2214.45 -> 16050.53 | F19: 16050.53 | G19: 16050.53
C20: Про здійснення соціальної роботи з сім’ями які опинились в складних життєвих обставинах | E20: 2020 | F20: 2020 | G20: 2020
C21: Про проведення благодійного заходу | E21: 1092.66 | F21: 1092.66 | G21: 1092.66
C22: Про проведення заходів
C23: Про проведення майстер-класів по миловарінню
C24: Про здійснення соціальної роботи з сім’ями які опинились в складних життєвих обставинах
B25: Програма надання інтегрованих соціальних послуг з питань сім’ї, дітей та молоді, попередження насильства в сім’ї та протидії торгівлі людьми на 2018-2020 роки, що затверджена рішенням міської ради від 29.11.2017 №34/12 | C25: всього по програмі | D25: Управління соціальних служб для сім"ї, дітей та молоді Луцької міської ради Управління соціальних служб для сім"ї, дітей та молоді Луцької міської ради | E25: =390600+280000+87400 -> 758000 | F25: =E25 -> 758000 | G25: =SUM(G26:G58) -> 757999.58
C26: Про зимове таборування | E26: 14000 | F26: =E26 -> 14000 | G26: =E26 -> 14000
C27: Про проведення соціального проекту “Наставництво в дії” | E27: =3575+914.04+108 -> 4597.04 | F27: =E27 -> 4597.04 | G27: =E27 -> 4597.04
C28: Про відвідування фестивалю “Червоноград скликає друзів” | E28: =5500+3870 -> 9370 | F28: 9370 | G28: 9370
C29: Про проведення культурно-мистецьких заходів соціального спрямування до Великодніх свят | E29: =4378.14+2878+1800+1193.76+384.1+1815 -> 12449 | F29: 12449 | G29: 12449
C30: Про проведення заходу спільно з ГО Янголята | E30: =585.9+4320 -> 4905.9 | F30: 4905.9 | G30: 4905.9
C31: Про проведення міжнародної конференції | E31: =8700+411.27+7300+2100+344.47+1903.6+8895.29+4946.23+2016.8+5040+600+4000 -> 46257.66 | F31: 46257.66 | G31: 46257.66
C32: Про участь у фестивалі “Долина нарцисів” | E32: =15600 -> 15600 | F32: 15600 | G32: 15600
C33: Про проведення заходу “Ми радість світу” | E33: =1500+550 -> 2050 | F33: 2050 | G33: 2050
C34: Про проведення заходу “Моє веселкове дитинство” | E34: =7507.45+1230.96+216+144+373.92+9298+426.66+612.65+3342+1300+4600+400+1000+900 -> 31351.64 | F34: 31351.64 | G34: 31351.64
C35: Про проведення заходу “Всі ми родом з дитинства” | E35: =3765.26+553.68+11011 -> 15329.94 | F35: 15329.94 | G35: 15329.94
C36: Про організацію відпочинку Джерело життя ГО | E36: =94350+43000 -> 137350 | F36: 137350 | G36: 137350
C37: Про організацію відпочинку Повір у себе ГО | E37: =33150+43000 -> 76150 | F37: 76150 | G37: 76150
C38: Про участь у фестивалі Дауни ГО | E38: 5900 | F38: 5900 | G38: 5900
C39: Про реалізацію соціального проекту “ЕкоЛіто” | E39: =1664+405+4160+382.5 -> 6611.5 | F39: 6611.5 | G39: 6611.5
C40: Про організацію літнього оздоровлення в таборі с.Дубечне, Старовижівського району | E40: 5500 | F40: 5500 | G40: 5500
C41: Про поїздку дітей у м.Таураге, Литва | E41: =1340+55278+800+2950 -> 60368 | F41: 60368 | G41: 60368
C42: Про відпочинок та оздоровлення дітей на базі Парасолька | E42: 9000 | F42: 9000 | G42: 9000
C43: Про організацію літнього оздоровлення в таборі с.Дубечне, Старовижівського району | E43: 11000 | F43: 11000 | G43: 11000
C44: Про соціальний проект “Креативний простір робототехніки” | E44: =8050+236 -> 8286 | F44: 8286 | G44: 8286
C45: Про затвердження переліку проектів, визнаних переможцями Конкурсу соціальних проектів | E45: =11104+8896+882.45+1400+992+2845+3000+1000+2500+1326+2500+3500 -> 39945.45 | F45: 39945.45 | G45: 39945.45
C46: Про проведення благодійного заходу Скоро до школи | E46: =76682.15+84+7915.91 -> 84682.06 | F46: 84682.06 | G46: 84682.06
C47: Про проведення дитячого свята “Луцьк в золотавих барвах” | E47: =5120+647+99.9+4600 -> 10466.9 | F47: 10466.9 | G47: 10466.9
C48: Про проведення дитячої квест-гри “Мій величний Лучеськ” | E48: 979.26 | F48: 979.26 | G48: 979.26
C49: Про проведення форуму сім’ї “Щаслива родина — міцна Україна” | E49: 13870 | F49: 13870 | G49: 13870
C50: Про сімейно-дозвіллєвий захід “ПереХресток” | E50: 1075 | F50: 1075 | G50: 1075
C51: Про участь у фестивалі “Радість творчості — душа” | E51: 2750 | F51: 2750 | G51: 2750
C52: Про проведення флешмобу | E52: 440 | F52: 440 | G52: 440
C53: Про проведення груп взаємопідтримки для батьків дітей з особливими потребами | E53: =4542.06+4041.2 -> 8583.26 | F53: 8583.26 | G53: 8583.26
C54: Про конкурс малюнку "Зимовий Луцьк" | E54: =380.1+2551+351.54+2880 -> 6162.64 | F54: 6162.64 | G54: 6162.64
C55: Про заходи до Дня Святого Миколая | E55: =280*210 -> 58800 | F55: 58800 | G55: 58800
C56: Про заходи до новорічно-різвдяних свят | E56: =30000+14720.13 -> 44720.13 | F56: 44720.13 | G56: 44720.13
C57: Про проведення свята "Запалення вогнів новорічної ялинки" | E57: =6500+583.2 -> 7083.2 | F57: 7083.2 | G57: 7083.2
C58: Про новорічно-різдвяні зустрічі | E58: =515+1850 -> 2365 | F58: =E58 -> 2365 | G58: =E58 -> 2365
B59: Комплексна програма підтримки військовослужбовців, призваних з міста Луцька на військову службу по мобілізації, членів їх сімей, а також сімей загиблих (померлих) військовослужбовців — лучан | C59: всього по програмі | D59: Управління соціальних служб для сім"ї, дітей та молоді Луцької міської ради | E59: 84000 | F59: =E59 -> 84000 | G59: =SUM(G60:G66) -> 83996.93
C60: Про проведення Анти Стрес ZONE | E60: =5693.53+2797.96+1500.6 -> 9992.09 | F60: 9992.09 | G60: =E60 -> 9992.09
C61: Про проведення благодійного заходу в рамках соціально-освітнього проекту “ОгоРодина” | E61: 1650 | F61: 1650 | G61: 1650
C62: Про проведення заходів до Дня Святого Миколая | E62: =280*90 -> 25200 | F62: 25200 | G62: 25200
C63: Про здійснення соціальної роботи з сім’ями учасників АТО | E63: =2011.84+3030.9 -> 5042.74 | F63: 5042.74 | G63: 5042.74
C64: Про проведення арт-терапії | E64: =4600.1+3000 -> 7600.1 | F64: 7600.1 | G64: 7600.1
C65: Про заходи до новорічно-різвдяних свят | E65: =26950+5000 -> 31950 | F65: 31950 | G65: 31950
C66: Про виготовлення друкованої інформаційної продукції | E66: 2562 | F66: =E66 -> 2562 | G66: =E66 -> 2562
A67: Всього по програмах | E67: =E6+E25+E59 -> 1015000 | F67: =E67 -> 1015000 | G67: =G6+G25+G59 -> 1014996.51
E68: =E67+G68 -> 1015000
B69: Начальник управління Ліна Галан

Sheet Лист1
A1: Назва програми дата і номер рішення про її затвердження | B1: Основні заходи | C1: Планові обсяги фінансування на 2018 рік | D1: Фактичні обсяги фінансування за 12 місяців 2018 р.
A3: 2 | B3: 3 | C3: 5 | D3: 7
A4: Програма соціально-правового захисту дітей на 2017-2021 роки | B4: всього по програмі | C4: =121100+51900 -> 173000 | D4: =SUM(D5:D19) -> 173000
B5: Про проведення заходів | C5: =3800+394.92+2972 -> 7166.92 | D5: =C5 -> 7166.92
B6: Про проведення екскурсії зоопарком | C6: =1200+96+100 -> 1396 | D6: 1396
B7: Про проведення заходів | C7: =1493+3411.69 -> 4904.69 | D7: 4904.69
B8: Про здійснення соціальної роботи з сім’ями які опинились в складних життєвих обставинах | C8: 5146.87 | D8: 5146.87
B9: Про участь дітей у Міжнародному фестивалі аутизму Anca | C9: =102269.92+15200 -> 117469.92 | D9: 117469.92
B10: Про проведення заходів до Дня матері | C10: 2159 | D10: 2159
B11: Про проведення екскурсії у кінний-спортивний клуб Cloverland Horse Club | C11: 1088.04 | D11: 1088.04
B12: Про здійснення соціальної роботи з сім’ями які опинились в складних життєвих обставинах | C12: =2997.01+670.14+55.85+819.06 -> 4542.06 | D12: 4542.06
B13: Про проведення екскурсії у кінний-спортивний клуб Cloverland Horse Club | C13: 1201.6 | D13: 1201.6
B14: Про проведення конкурсів малюнку на асфальті | C14: =1488+460.8+1040+63+214.89 -> 3266.69 | D14: 3266.69
B15: Про проведення заходу “Я-лучанин, я-лучанка” | C15: =3276+71.82+700 -> 4047.82 | D15: 4047.82
B16: Про проведення заходів | C16: =1447.2 -> 1447.2 | D16: 1447.2
B17: Про реалізацію соціального проекту “Соціальні послуги в громаді” | C17: =1310.34+800+3547+779.24+260+2076+1763.5+625+2675+2214.45 -> 16050.53 | D17: 16050.53
B18: Про здійснення соціальної роботи з сім’ями які опинились в складних життєвих обставинах | C18: 2020 | D18: 2020
B19: Про проведення благодійного заходу | C19: 1092.66 | D19: 1092.66

Sheet Лист2
A1: Назва програми дата і номер рішення про її затвердження | B1: Основні заходи | C1: Планові обсяги фінансування на 2018 рік | D1: Фактичні обсяги фінансування за 12 місяців 2018 р.
A3: 2 | B3: 3 | C3: 5 | D3: 7
A4: Програма надання інтегрованих соціальних послуг з питань сім’ї, дітей та молоді, попередження насильства в сім’ї та протидії торгівлі людьми на 2018-2020 роки, що затверджена рішенням міської ради від 29.11.2017 №34/12 | B4: всього по програмі | C4: =390600+280000+87400 -> 758000 | D4: =SUM(D5:D37) -> 757999.58
B5: Про зимове таборування | C5: 14000 | D5: =C5 -> 14000
B6: Про проведення соціального проекту “Наставництво в дії” | C6: =3575+914.04+108 -> 4597.04 | D6: =C6 -> 4597.04
B7: Про відвідування фестивалю “Червоноград скликає друзів” | C7: =5500+3870 -> 9370 | D7: 9370
B8: Про проведення культурно-мистецьких заходів соціального спрямування до Великодніх свят | C8: =4378.14+2878+1800+1193.76+384.1+1815 -> 12449 | D8: 12449
B9: Про проведення заходу спільно з ГО Янголята | C9: =585.9+4320 -> 4905.9 | D9: 4905.9
B10: Про проведення міжнародної конференції | C10: =8700+411.27+7300+2100+344.47+1903.6+8895.29+4946.23+2016.8+5040+600+4000 -> 46257.66 | D10: 46257.66
B11: Про участь у фестивалі “Долина нарцисів” | C11: =15600 -> 15600 | D11: 15600
B12: Про проведення заходу “Ми радість світу” | C12: =1500+550 -> 2050 | D12: 2050
B13: Про проведення заходу “Моє веселкове дитинство” | C13: =7507.45+1230.96+216+144+373.92+9298+426.66+612.65+3342+1300+4600+400+1000+900 -> 31351.64 | D13: 31351.64
B14: Про проведення заходу “Всі ми родом з дитинства” | C14: =3765.26+553.68+11011 -> 15329.94 | D14: 15329.94
B15: Про організацію відпочинку Джерело життя ГО | C15: =94350+43000 -> 137350 | D15: 137350
B16: Про організацію відпочинку Повір у себе ГО | C16: =33150+43000 -> 76150 | D16: 76150
B17: Про участь у фестивалі Дауни ГО | C17: 5900 | D17: 5900
B18: Про реалізацію соціального проекту “ЕкоЛіто” | C18: =1664+405+4160+382.5 -> 6611.5 | D18: 6611.5
B19: Про організацію літнього оздоровлення в таборі с.Дубечне, Старовижівського району | C19: 5500 | D19: 5500
B20: Про поїздку дітей у м.Таураге, Литва | C20: =1340+55278+800+2950 -> 60368 | D20: 60368
B21: Про відпочинок та оздоровлення дітей на базі Парасолька | C21: 9000 | D21: 9000
B22: Про організацію літнього оздоровлення в таборі с.Дубечне, Старовижівського району | C22: 11000 | D22: 11000
B23: Про соціальний проект “Креативний простір робототехніки” | C23: =8050+236 -> 8286 | D23: 8286
B24: Про затвердження переліку проектів, визнаних переможцями Конкурсу соціальних проектів | C24: =11104+8896+882.45+1400+992+2845+3000+1000+2500+1326+2500+3500 -> 39945.45 | D24: 39945.45
B25: Про проведення благодійного заходу Скоро до школи | C25: =76682.15+84+7915.91 -> 84682.06 | D25: 84682.06
B26: Про проведення дитячого свята “Луцьк в золотавих барвах” | C26: =5120+647+99.9+4600 -> 10466.9 | D26: 10466.9
B27: Про проведення дитячої квест-гри “Мій величний Лучеськ” | C27: 979.26 | D27: 979.26
B28: Про проведення форуму сім’ї “Щаслива родина — міцна Україна” | C28: 13870 | D28: 13870
B29: Про сімейно-дозвіллєвий захід “ПереХресток” | C29: 1075 | D29: 1075
B30: Про участь у фестивалі “Радість творчості — душа” | C30: 2750 | D30: 2750
B31: Про проведення флешмобу | C31: 440 | D31: 440
B32: Про проведення груп взаємопідтримки для батьків дітей з особливими потребами | C32: =4542.06+4041.2 -> 8583.26 | D32: 8583.26
B33: Про конкурс малюнку "Зимовий Луцьк" | C33: =380.1+2551+351.54+2880 -> 6162.64 | D33: 6162.64
B34: Про заходи до Дня Святого Миколая | C34: =280*210 -> 58800 | D34: 58800
B35: Про заходи до новорічно-різвдяних свят | C35: =30000+14720.13 -> 44720.13 | D35: 44720.13
B36: Про проведення свята "Запалення вогнів новорічної ялинки" | C36: =6500+583.2 -> 7083.2 | D36: 7083.2
B37: Про новорічно-різдвяні зустрічі | C37: =515+1850 -> 2365 | D37: =C37 -> 2365

Sheet Лист3
A1: Назва програми дата і номер рішення про її затвердження | B1: Основні заходи | C1: Планові обсяги фінансування на 2018 рік | D1: Фактичні обсяги фінансування за 12 місяців 2018 р.
A3: Комплексна програма підтримки військовослужбовців, призваних з міста Луцька на військову службу по мобілізації, членів їх сімей, а також сімей загиблих (померлих) військовослужбовців — лучан | B3: всього по програмі | C3: 84000 | D3: =SUM(D4:D10) -> 83996.93
B4: Про проведення Анти Стрес ZONE | C4: =5693.53+2797.96+1500.6 -> 9992.09 | D4: =C4 -> 9992.09
B5: Про проведення благодійного заходу в рамках соціально-освітнього проекту “ОгоРодина” | C5: 1650 | D5: 1650
B6: Про проведення заходів до Дня Святого Миколая | C6: =280*90 -> 25200 | D6: 25200
B7: Про здійснення соціальної роботи з сім’ями учасників АТО | C7: =2011.84+3030.9 -> 5042.74 | D7: 5042.74
B8: Про проведення арт-терапії | C8: =4600.1+3000 -> 7600.1 | D8: 7600.1
B9: Про заходи до новорічно-різвдяних свят | C9: =26950+5000 -> 31950 | D9: 31950
B10: Про виготовлення друкованої інформаційної продукції | C10: 2562 | D10: =C10 -> 2562

Sheet Корегована таблиця
I1: Додаток 2
A2: Перелік цільових програм, які планується виконувати у 2014-2015 роках з використанням усіх джерел фінансування
A4: № п.п. | B4: Назва програми дата і номер рішення про її затвердження | C4: Захід | D4: Головний розпорядник коштів, виконавці | E4: Потреба в коштах на 2014-2015рр., тис.грн. | G4: Планові обсяги фінансування на 2014 рік відповідно до Програми | J4: Передбачено бюджетом на 2014 рік | K4: Фактичні обсяги фінансування | N4: Стан виконання заходів Програми
G5: Всього тис.грн. | H5: в т.ч. державного бюджету тис.грн. | I5: в т.ч. бюджету міста тис.грн. | K5: Всього тис.грн. | L5: в т.ч.державного бюджету тис.грн. | M5: в т.ч.бюджету міста тис.грн. | N5: Фактично виконано робіт за І півріччя 2014 р | P5: % вик-ня від планових обсягів всього гр.12/гр.5 | Q5: % фін-ня від передбачених з бюджету міста гр.11/гр.8
A6: 1 | B6: 2 | C6: 3 | D6: 4 | E6: 5 | F6: 6 | G6: 5 | H6: 6 | I6: 7 | J6: 8 | K6: 9 | L6: 10 | M6: 11 | N6: 12 | P6: 13 | Q6: 14
A7: Відділ у справах сім'ї та молоді
A8: 1 | B8: Міська програма підтримки дітей, молоді, жінок та сім'ї на 2012-2015 роки Р-ня ЛМР від 01.12.2011 №16/25, від 06.06.2012 №25/108 | D8: Виконавчий комітет, відділ у справах сім'ї та молоді | E8: 2014 рік | F8: 295 | H8: - | I8: 295
E9: 2015 рік | F9: 295 | H9: - | I9: 295
A10: Всього по програмі | F10: 590 | H10: - | I10: =SUM(I8:I9) -> 590
A11: Всього по відділу | F11: 590 | H11: - | I11: 590
A12: Служба у справах дітей
A13: 2 | B13: Міська програма соціально-правового захисту дітей на 2012-2016 роки | C13: Р-ня ЛМР від 01.12.2011 №16/26 | D13: Служба у справах дітей | E13: 2014 рік | F13: 110 | H13: - | I13: 110
E14: 2015 рік | F14: 117 | H14: - | I14: 117
A15: Всього по програмі | F15: 227 | H15: - | I15: 227
A16: 3 | B16: Міська Програма забезпечення житлом, дітей, сиріт, дітей позбавлених батьківських прав | C16: Р-ня ЛМР від 06.06.2012 №25/107 | D16: Служба у справах дітей | E16: 2014 рік | F16: 400 | H16: 200 | I16: 200
E17: 2015 рік | F17: 550 | H17: 275 | I17: 275
A18: Всього по програмі | F18: 950 | H18: =SUM(H16:H17) -> 475 | I18: =SUM(I16:I17) -> 475
A19: Всього по відділу | F19: =SUM(F15+F18) -> 1177 | H19: 475 | I19: =SUM(I15+I18) -> 702
A20: ЛМЦССС для дітей та молоді
A21: 4 | B21: Міська програма соціально-правового захисту дітей на 2012-2016 роки | C21: Р-ня ЛМР від 01.12.2011 №16/26 | D21: Відділ у справах сім'ї та молоді, Луцький міський центр соціальних служб для сім'ї, дітей та молоді | E21: 2014 рік | F21: 20 | H21: - | I21: 20
E22: 2015 рік | F22: 30 | H22: - | I22: 30
A23: Всього по програмі | F23: 50 | H23: - | I23: 50
A24: 5 | B24: Міська програма підтримки дітей, молоді, жінок та сім'ї на період до 2015 року | C24: Р-ня ЛМР від 01.12.2011 №16/25 | D24: Луцький міський центр соціальних служб для сім'ї, дітей та молоді | E24: 2014 рік | F24: 30 | H24: - | I24: 30
E25: 2015 рік | F25: 40 | H25: - | I25: 40
A26: Всього по програмі | F26: 70 | H26: - | I26: 70
A27: Всього по відділу | F27: =SUM(F23+F26) -> 120 | H27: - | I27: 120
A28: Міський центр зайнятості
A29: 6 | B29: Програма зайнятості населення м. Луцька на період до 2017 року | C29: Р-ня ЛМР від 25.09.2013 № 45/30 | D29: Департамент соціальної політики, Луцький міський центр зайнятості | E29: 2014 рік | F29: 60 | H29: - | I29: 30
E30: 2015 рік | F30: 60 | H30: - | I30: 30
A31: Всього по програмі | F31: 120 | H31: - | I31: =SUM(I29:I30) -> 60
A32: Всього по відділу | F32: 120 | H32: - | I32: 60
A33: Комітет по фізичній культурі і спорту
A34: 7 | B34: Програма розвитку фізичної культури та спорту в місті на 2012-2016 роки | C34: Р-ня ЛМР від 28.12.2011 №18/26 | D34: Комітет по фізичній культурі і спорту | E34: 2014 рік | F34: 2526.5 | H34: - | I34: 2526.5
E35: 2015 рік | F35: 2981 | H35: - | I35: 2981
A36: Всього по програмі | F36: =SUM(F34:F35) -> 5507.5 | H36: - | I36: =SUM(I34:I35) -> 5507.5
A37: Всього по комітету | F37: 5507.5 | H37: - | I37: 5507.5
A38: Департамент соціальної політики
A39: 8 | B39: Комплексна міська програма соціального захисту населення на 2011-2015 роки | C39: Р-ня міської ради від 17.12.2010 №2/8, від 27.12.2011 №18/18, від 28.11.2012 №34/34 | D39: Департамент соціальної політики, територіальний центр соціального обслуговування м.Луцька | E39: 2014 рік | F39: 6156.1 | H39: - | I39: 6156.1
E40: 2015 рік | F40: 7345.6 | H40: - | I40: 7345.6
A41: Всього по програмі | F41: =SUM(F39:F40) -> 13501.7 | H41: - | I41: =SUM(I39:I40) -> 13501.7
A42: Всього по департаменту | F42: 13501.7 | H42: - | I42: 13501.7
A43: Управління освіти
A44: 9 | B44: Міська комплексна програма "Розвиток освіти м. Луцька на 2010-2015р.р." | C44: Р-ня ЛМР від 24.02.10р.№53/12; внесено зміни р-ням виконачого комітету ЛМР від 28.09.11р.№14/13 | D44: Управління освіти | E44: 2014 рік | F44: 41035.7 | H44: 1660 | I44: 39375.7
E45: 2015 рік | F45: 46992 | H45: 1425 | I45: 45567
A46: Всього по програмі | F46: =SUM(F44:F45) -> 88027.7 | H46: =SUM(H44:H45) -> 3085 | I46: =SUM(I44:I45) -> 84942.7
A47: Всього по управлінню | F47: 88027.7 | H47: 3085 | I47: 84942.7
A48: Управління охорони здоров'я
A49: 10 | B49: Програма поліпшення репродуктивного здоров'я населення на період до 2015 р. | C49: Р-ня ЛМР від 16.04.08№26/3 | D49: Управління охорони здоров'я | E49: 2014 рік | F49: 915 | H49: 915 | I49: -
E50: 2015 рік | F50: 935 | H50: 935 | I50: -
A51: Всього по програмі | F51: 1850 | H51: =SUM(H49:H50) -> 1850 | I51: -
A52: 11 | B52: Міська цільова Програма боротьби з онкологічними захворюваннями на 2008-2016р.р. | C52: Р-ня ЛМР від 05.03.08р.№24/78 | D52: Управління охорони здоров'я | E52: 2014 рік | F52: 89 | H52: - | I52: 89
E53: 2015 рік | F53: 66 | H53: - | I53: 66
A54: Всього по програмі | F54: 155 | H54: - | I54: =SUM(I52:I53) -> 155
A55: 12 | B55: Цільова програма імунопрофілактики та захисту населення м.Луцька від інфекційних хвороб на 2011-2015 р.р. | C55: Р-ня ЛМР від 29.06.2011 №11/103 | D55: Управління охорони здоров'я. санітарно-епідеміологічна служба м.Луцька та Луцького району | E55: 2014 рік | F55: 150 | H55: - | I55: 150
E56: 2015 рік | F56: 150 | H56: - | I56: 150
A57: Всього по програмі | F57: 300 | H57: - | I57: 300
A58: Всього по управлінню | F58: =SUM(F51+F54+F57) -> 2305 | H58: 1850 | I58: =SUM(I54+I57) -> 455
A59: Управління культури
A60: 13 | B60: Міська цільова Програма фінансування культурно - мистецьких та культурологічних заходів у м. Луцьку на 2014 рік | C60: Программа буде внесена на розгляд сесії Луцької міської ради грудні 2013 року | D60: Управління культури | E60: 2014 рік | F60: 800 | H60: - | I60: 800
A61: 14 | B61: Міська цільова Програма фінансування культурно - мистецьких та культурологічних заходів у м. Луцьку на 2015 рік | C61: Программа буде внесена на розгляд сесії Луцької міської ради грудні 2014 року | D61: Управління культури | E61: 2015 рік | F61: 800 | H61: - | I61: 800
A62: Всього по програмі | F62: =SUM(F60:F61) -> 1600 | H62: - | I62: =SUM(I60:I61) -> 1600
A63: 15 | B63: Міська цільова Програма “Інвентаризація об’єктів культурної спадщини на 2014 рік” | C63: Программа буде внесена на розгляд сесії Луцької міської ради грудні 2013 року | D63: Управління культури | E63: 2014 рік | F63: 63.6 | H63: - | I63: 63.6
A64: Всього по програмі | F64: 63.6 | H64: - | I64: 63.6
A65: Всього по управлінню | F65: =SUM(F62+F64) -> 1663.6 | H65: - | I65: =SUM(I62+I64) -> 1663.6
A66: Відділ інформаційної роботи
A67: 16 | B67: Міська програма "Прозора влада" на 2013 -2015 рр. | C67: Р-ня ЛМР від 18.12.12 №35/24 | D67: Відділ інформаційної роботи | E67: 2014 рік | F67: 660 | H67: - | I67: 660
E68: 2015 рік | F68: 660 | H68: - | I68: 660
A69: Всього по програмі | F69: =SUM(F67:F68) -> 1320 | H69: - | I69: =SUM(I67:I68) -> 1320
A70: Всього по відділу | F70: 1320 | H70: - | I70: 1320
A71: Відділ зв'язків з громадськістю
A72: 17 | B72: Програма фінансування заходів державного, обласного, місцевого значення у місті Луцьку на 2014 рік | C72: Программа буде внесена на розгляд сесії Луцької міської ради грудні 2013 року | D72: Відділ зв'язків з громадськістю | E72: 2014 рік | F72: 500 | H72: - | I72: 500
A73: Всього по програмі | F73: 500 | H73: - | I73: 500
A74: Всього по відділу | F74: 500 | H74: - | I74: 500
A75: Управління фінансів та бюджету
A76: 18 | B76: Програма управління боргу на 2014-2018 рік (проект) | C76: Программа буде внесена на розгляд сесії Луцької міської ради в грудні 2014 року | D76: Управління фінансів та бюджету | E76: 2014 рік | F76: 87 | H76: - | I76: 87
E77: 2015 рік | F77: 120 | H77: - | I77: 120
A78: Всього по програмі | F78: 207 | H78: - | I78: 207
A79: Всього по управлінню | F79: 207 | H79: - | I79: 207
A80: Управління з питань надзвичайних ситуацій та цивільного захисту населення
A81: 19 | B81: Програма організації рятування людей на водних об'єктах міста в літній період 2013-2015 р.р. | C81: Р-ня ЛМР від 18.12.12 № 35/22 | D81: Виконком міської ради, відділ муніципальної поліції | E81: 2014 рік | F81: 60 | H81: - | I81: 60
E82: 2015 рік | F82: 65 | H82: - | I82: 65
A83: Всього по програмі | F83: 125 | H83: - | I83: 125
A84: 20 | B84: Програма забезпечення пожежної безпеки м. Луцька на 2012-2016 роки | C84: Р-ня ЛМР від 21.12.2011 №117/20 | D84: Винавчий комітет, департамент ЖКГ, управління освіти, управління охорони здоров'я, управління культури | E84: 2014 рік | F84: 487.5 | H84: - | I84: 487.5
E85: 2015 рік | F85: 624.5 | H85: - | I85: 624.5
A86: Всього по програмі | F86: =SUM(F84:F85) -> 1112 | H86: - | I86: =SUM(I84:I85) -> 1112
A87: 21 | B87: Програма забезпечення непрацюючого населення засобами хімічного захисту на 2012-2015 роки | C87: Р-ня ЛМР від 01.12.2011 №16/24 | D87: Винавчий комітет, департамент ЖКГ, суб'єкти господарювання всіх форм власності | E87: 2014 рік | F87: 10 | H87: - | I87: 10
E88: 2015 рік | F88: 10.36 | H88: - | I88: 10.36
A89: Всього по програмі | F89: 20.36 | H89: - | I89: 20.36
A90: Всього по управлінню | F90: =SUM(F83+F86+F89) -> 1257.36 | H90: - | I90: =SUM(I83+I86+I89) -> 1257.36
A91: Відділ екології
A92: 22 | B92: Комплексна програма ОНПС м.Луцька на 2010-2015 рр. зі змінами, внесенними р-ня ЛМР від 24.04.2013 № 40/121 | C92: Р-ня ЛМР від 24.02.10р.№53/16 зі змінами, 24.04.2013 №40/121 | D92: Виконавчий комітет та структурні підрозділи ЛМР (підрядні організації) | E92: 2014 рік | F92: 23815.5 | H92: 4260 | I92: 1418
E93: 2015 рік | F93: 12165 | H93: 5127.5 | I93: 2993
A94: Всього по програмі | F94: =SUM(F92:F93) -> 35980.5 | H94: =SUM(H92:H93) -> 9387.5 | I94: =SUM(I92:I93) -> 4411
A95: Всього по відділу | F95: 35980.5 | H95: 9387.5 | I95: 4411
A96: Управління економіки
A97: 23 | B97: Програма відшкодування відсоткових ставок за залученими кредитами на 2013-2015 роки | C97: Р-ня ЛМР від 28.02.2013 №38/52 | D97: Виконавчий комітет | E97: 2014 рік | F97: 1500 | H97: - | I97: 1500
E98: 2015 рік | F98: 2000 | H98: - | I98: 2000
A99: Всього по програмі | F99: =SUM(F97:F98) -> 3500 | H99: - | I99: =SUM(I97:I98) -> 3500
A100: Всього по управлінню | F100: 3500 | H100: - | I100: 3500
A101: Управління розвитку підприємництва та реклами
A102: 24 | B102: Програма розвитку малого і середнього підприємництва у місті Луцьку на 2013-2014 роки | C102: Р-ня ЛМР від 30.01.2013 №37/16 | D102: Управління розвитку підприємництва та реклами | E102: 2014 рік | F102: 1066 | H102: - | I102: 1066
A103: Всього по програмі | F103: 1066 | H103: - | I103: 1066
A104: Всього по управлінню | F104: 1066 | H104: - | I104: 1066
A105: Управління земельних ресурсів
A106: 25 | B106: Програма розвитку земельних відносин в місті Луцьку на 2011-2016 роки; | C106: Р-ня ЛМР від 29.06.11 №11/120 "Про затвердження програми розвитку земельних відносин в місті Луцьку на 2011-2016 роки" | D106: Виконавчий комітет, управління земельних ресурсів Луцької міської ради, головне кправління Держземагенства у Волинській області | E106: 2014 рік | F106: 1070 | H106: - | I106: 1070
E107: 2015 рік | F107: 370 | H107: - | I107: 370
A108: Всього по програмі | F108: 1440 | H108: - | I108: 1440
A109: Всього по управлінню | F109: 1440 | H109: - | I109: 1440
A110: Управління капітального будівництва
A111: 26 | B111: Розвиток електротранспорту м. Луцька на 2007-2015 рр. | C111: Р-ня ЛМР від 06.06.2007 №14/15 | D111: Управління капітального будівництва | E111: 2014 рік | F111: 1000 | H111: - | I111: 1000
E112: 2015 рік | F112: 1500 | H112: - | I112: 1500
A113: Всього по програмі | F113: 2500 | H113: - | I113: 2500
A114: 27 | B114: Програма забезпечення житлом, дітей сиріт, дітей позбавлених батьківського піклування та осіб з їх числа на 2012-2015 рр. | C114: Р-ня ЛМР від 06.06.2012 №25/107 | D114: Управління капітального будівництва, служба у справах дітей | E114: 2014 рік | F114: 1000 | H114: 700 | I114: 300
E115: 2015 рік | F115: 1171.7 | H115: 775 | I115: 396.7
A116: Всього по програмі | F116: 2171.7 | H116: =SUM(H114:H115) -> 1475 | I116: =SUM(I114:I115) -> 696.7
A117: 28 | B117: Обласна цільова програма "Житло для молоді"- надання довгострокового пільгового кредиту громадянам на будівництво (реконструкцію) та придбання житла (2010-2017рр) | C117: Р-ня обласної ради від 31.03.2010 №113 та від 27.04.2010 №40/4 | D117: Управління капітального будівництва, Волинське регіональне управління Державної спеціалізованої фінансової установи "Державний фонд сприяння житловому будівництву" | E117: 2014 рік | F117: 300 | H117: - | I117: -
E118: 2015 рік | F118: 290 | H118: - | I118: -
A119: Всього по програмі | F119: 590 | H119: - | I119: -
A120: Всього по управлінню | F120: =SUM(F113+F116+F119) -> 5261.7 | H120: 1475 | I120: =SUM(I113+I116) -> 3196.7
A121: Департамент житлово-комунального господарства
A122: 29 | B122: Програма капітального ремонту житлового фонду міста на 2012-2014 роки, | C122: Р-ня ЛМР від 28.12.2011 №18/31 | D122: Департамент житлово-комунального господарства | E122: 2014 рік | F122: 9000 | H122: 3000 | I122: 6000
A124: 30 | B124: Програма капітального ремонту житлового фонду міста на 2015 рік (проект) | C124: Програму буде внесено на розгляд сесії Луцької міської ради у 2014 році | D124: Департамент житлово-комунального господарства | E124: 2015 рік | F124: 10000 | H124: 3000 | I124: 7000
A125: Всього по програмі | F125: =SUM(F122:F124) -> 19000 | H125: =SUM(H122:H124) -> 6000 | I125: =SUM(I122:I124) -> 13000
A126: 31 | B126: Програма сприяння діяльності об'єднань співвласників багатоквартирних будинків на території м.Луцька, | C126: Р-ня ЛМР від 28.12.2011 №18/32 | D126: Департамент житлово-комунального господарства | E126: 2014 рік | F126: 4000 | H126: - | I126: 4000
E127: 2015 рік | F127: 4500 | H127: - | I127: 4500
A128: Всього по програмі | F128: =SUM(F126:F127) -> 8500 | H128: - | I128: =SUM(I126:I127) -> 8500
A129: 32 | B129: Програма з благоустрою міста на 2013-2015 роки | C129: Р-ня ЛМР від 30.01.2013 №37/6 | D129: Департамент житлово-комунального господарства | E129: 2014 рік | F129: 41790 | H129: - | I129: 41790
E130: 2015 рік | F130: 56065 | H130: - | I130: 56065
A131: Всього по програмі | F131: =SUM(F129:F130) -> 97855 | H131: - | I131: =SUM(I129:I130) -> 97855
A132: 33 | B132: Програма розвитку дорожнього господарства м. Луцька на 2011-2014 роки | C132: Р-ня ЛМР від 27.01.2011 №5/59 | D132: Департамент житлово-комунального господарства | E132: 2014 рік | F132: 52726 | H132: - | I132: 52726
A134: 34 | B134: Програма розвитку дорожнього господарства м. Луцька на 2015 рік (проект) | C134: Програму буде винесено на розгляд сесії Луцької міської ради у 2014 році | D134: Департамент житлово-комунального господарства | E134: 2015 рік | F134: 60000 | H134: - | I134: 60000
A135: Всього по програмі | F135: =SUM(F132:F134) -> 112726 | H135: - | I135: =SUM(I132:I134) -> 112726
A136: 35 | B136: Програма "Реконструкція мереж зовнішнього освітлення м.Луцька на 2011-2014 роки" | C136: Р-ня ЛМР від 23.03.2011 №7/2 | D136: Департамент житлово-комунального господарства | E136: 2014 рік | F136: 2874 | H136: - | I136: 2874
A138: 36 | B138: Програма "Реконструкція мереж зовнішнього освітлення м.Луцька на 2015 рік" (проект) | C138: Програму буде внесено на розгляд сесії Луцької міської ради у 2014 році | D138: Департамент житлово-комунального господарства | E138: 2015 рік | F138: 3000 | H138: - | I138: 3000
A139: Всього по програмі | F139: =SUM(F136:F138) -> 5874 | H139: - | I139: =SUM(I136:I138) -> 5874
A140: 37 | B140: Програма будівництва мереж зовнішнього освітлення м. Луцька на 2009-2014 роки | C140: Р-ня ЛМР від 03.09.2008 №30/4 | D140: Департамент житлово-комунального господарства | E140: 2014 рік | F140: 1000 | H140: - | I140: 1000
A141: 38 | B141: Програма будівництва мереж зовнішнього освітлення м. Луцька на 2015 рік (проект) | C141: Програму буде внесено на розгляд сесії Луцької міської ради у 2014 році | D141: Департамент житлово-комунального господарства | E141: 2015 рік | F141: 1500 | H141: - | I141: 1500
A142: Всього по програмі | F142: =SUM(F140:F141) -> 2500 | H142: - | I142: =SUM(I140:I141) -> 2500
A143: 39 | B143: Програма реформування і розвитку житлово-комунального господарства м. Луцька на 2010-2014 роки | C143: Р-ня ЛМР від 03.11.2010 №68/18 | D143: Департамент житлово-комунального господарства | E143: 2014 рік | F143: 97361.9 | H143: 57956.9 | I143: 39405
A144: 40 | B144: Програма реформування і розвитку житлово-комунального господарства м. Луцька на 2015 рік (проект) | C144: Програму буде винесено на розгляд сесії Луцької міської ради у 2014 році | D144: Департамент житлово-комунального господарства | E144: 2015 рік | F144: 100000 | H144: 60000 | I144: 40000
A145: Всього по програмі | F145: =SUM(F143:F144) -> 197361.9 | H145: =SUM(H143:H144) -> 117956.9 | I145: =SUM(I143:I144) -> 79405
A146: 41 | B146: Програма обладнання підвищувальних насосних станцій м.Луцька приладами для регулювання тиску води у внутрішньобудинкових мережах | C146: Р-ня ЛМР від 28.03.2012 №22/59 | D146: Департамент житлово-комунального господарства | E146: 2014 рік | F146: 600 | H146: - | I146: 600
E147: 2015 рік | F147: 700 | H147: - | I147: 700
A148: Всього по програмі | F148: =SUM(F146:F147) -> 1300 | H148: - | I148: =SUM(I146:I147) -> 1300
A149: Всього по департаменту | F149: =SUM(F148+F145+F142+F139+F135+F131+F128+F125) -> 445116.9 | H149: =SUM(H145+H125) -> 123956.9 | I149: =SUM(I148+I145+I142+I139+I135+I131+I128+I125) -> 321160
A150: Управління туризму та промоції міста
A151: 42 | B151: Програма розвитку конкурентно-спроможності туристичної галузі у місті Луцьку на 2013-2014 роки | C151: Р-ня ЛМР від 28.11.2012 №34/42 | D151: Управління туризму та промоції міста, КП "Центр туристичної інформації та послуг" | E151: 2014 рік | F151: 607 | H151: - | I151: 527
A152: Всього по програмі | F152: 607 | H152: - | I152: 527
A153: Всього по управлінню | F153: 607 | H153: - | I153: 527
A154: Управління міжнародного співробітництва та проектної діяльності
A155: 43 | B155: Програма розвитку транскордонного співробітництва міста Луцька та залучення міжнародної технічної допомоги на 2013-2014 роки | C155: Р-ня ЛМР від 26.12.2012 №36/7 | D155: Управління міжнародного співробітництва та проектної діяльності | E155: 2014 рік | F155: 2406 | H155: - | I155: 511
A156: Всього по програмі | F156: 2406 | H156: - | I156: 511
A157: 44 | B157: Програма розвитку транскордонного співробітництва міста Луцька та залучення міжнародної технічної допомоги на 2015-2016 роки (проект) | C157: Програма буде внесена на розгляд сесії Луцької міської ради у грудні 2014 року | D157: Управління міжнародного співробітництва та проектної діяльності | E157: 2015 рік | F157: 1500 | H157: - | I157: 300
A158: Всього по програмі | F158: 1500 | H158: - | I158: 300
A159: Всього по управлінню | F159: =SUM(F156+F158) -> 3906 | H159: - | I159: =SUM(I156+I158) -> 811
A160: Відділ програмно-комп'ютерного забезпечення
A161: 45 | B161: Програма розвитку електронного урядування та інформатизації міста Луцька на 2013-2015 роки | C161: Р-ня ЛМР від 28.11.2012 №34/40 | D161: Виконавчий комітет, відділ програмно-комп'ютерного забезпечення | E161: 2014 рік | F161: 2162 | H161: - | I161: 2162
E162: 2015 рік | F162: 395 | H162: - | I162: 395
A163: Всього по програмі | F163: =SUM(F161:F162) -> 2557 | H163: - | I163: =SUM(I161:I162) -> 2557
A164: Всього по відділу | F164: 2557 | H164: - | I164: 2557
A165: 46 | B165: Програма співпраці СНУ ім.Лесі Українки з Луцькою міською радою на 2013-2015 роки, в частині наукових досліджень історії міста Луцька | C165: Р-ня ЛМР від 18.12.2012 №35\14 | D165: Виконавчий комітет ЛМР | E165: 2014 рік | F165: 30 | H165: - | I165: 30
E166: 2015 рік | F166: 50 | H166: - | I166: 50
A167: Всього по програмі | F167: =SUM(F165:F166) -> 80 | H167: - | I167: =SUM(I165:I166) -> 80
A168: Міський трудовий архів
A169: 47 | B169: Програма забезпечення зберігання документів для соціально-правового захисту громадян в місті Луцьку на 2014-2015 роки | C169: Р-ня ЛМР від 30.10.2013 №46/113 | D169: ЛМР, комунальна установа Луцький міський трудовий архів, управління капітального будівництва міської ради | E169: 2014 рік | F169: 736.5 | H169: - | I169: 693.5
E170: 2015 рік | F170: 778.8 | H170: - | I170: 735.8
A171: Всього по програмі | F171: =SUM(F169:F170) -> 1515.3 | H171: - | I171: 1429.3
A172: Луцький міський відділ УМВС України у Волинській області
A173: 48 | B173: Програма заходів щодо забезпечення особистої безпеки громадян та протидії злочинності на 2013-2015 р. | C173: Р-ня ЛМР від 18.12.2012 №35/70 | D173: Луцький міський відділ УМВС України у Волинській області, (Варта порядку) | E173: 2014 рік | F173: 450 | H173: - | I173: 450
E174: 2015 рік | F174: 450 | H174: - | I174: 450
A175: Всього по програмі | F175: =SUM(F173:F174) -> 900 | H175: - | I175: =SUM(I173:I174) -> 900
A176: Потреба в коштах всього на: | E176: 2014 рік | F176: =SUM(F173+F169+F165+F161+F155+F151+F146+F143+F140+F136+F132+F129+F126+F122+F117+F114+F111+F106+F102+F97+F92+F87+F84+F81+F76+F72+F67+F63+F60+F55+F52+F49+F44+F39+F34+F29+F24+F21+F16+F13+F8) -> 299950.3 | H176: =SUM(H143+H122+H114+H92+H49+H44+H16) -> 68691.9 | I176: =SUM(I173+I169+I165+I161+I155+I151+I146+I143+I140+I136+I132+I129+I126+I122+I114+I111+I106+I102+I97+I92+I87+I84+I81+I76+I72+I67+I63+I60+I55+I52+I44+I39+I34+I29+I24+I21+I16+I13+I8) -> 210772.9
E177: 2015 рік | F177: =SUM(F174+F170+F166+F162+F157+F147+F144+F141+F138+F134+F130+F127+F124+F118+F115+F112+F107+F98+F93+F88+F85+F82+F77+F68+F61+F56+F53+F50+F45+F40+F35+F30+F25+F22+F17+F14+F9) -> 318276.96 | H177: =SUM(H144+H124+H115+H93+H50+H45+H17) -> 71537.5 | I177: =SUM(I174+I170+I166+I162+I157+I147+I144+I141+I138+I134+I130+I127+I124+I115+I112+I107+I98+I93+I88+I85+I82+I77+I68+I61+I56+I53+I45+I40+I35+I30+I25+I22+I17+I14+I9) -> 241131.96
A178: Потреба в коштах всього на 2014-2015рр. | F178: =SUM(F176:F177) -> 618227.26 | H178: =SUM(H176:H177) -> 140229.4 | I178: =SUM(I176:I177) -> 451904.86
